Cogmind - Beta 16.1 @@@ ROGUE MODE // 2026.02.15 @ 07:55:28 Player: naththebg Result: Destroyed by Y-45 Defender with Beam Rifle Performance ------------- Evolutions (0) 0 Regions Visited (3) 600 Robots Destroyed (21) 105 Value Destroyed (592) 592 Prototype IDs (13) 260 Alien Tech Used (0) 0 Bonus (-36) -36 TOTAL SCORE: 1521 Bonus ------- Friendly Fire -36 Cogmind --------- Core Integrity 0/250 Matter 254/300 Energy 195/200 System Corruption 3% Temperature Cool (9) Movement Core (200) Ox3 Location -8/Recycling Parts ------- > --- POWER (1) -------- Subdweller Power Source > --- PROPULSION (2) --- (None) > --- UTILITY (2) ------ (None) > --- WEAPON (2) ------- Battle Rifle Subdweller Machine Gun > --- INVENTORY (5) ---- 1B-0RG's Assimilator Peak State ------------ > --- POWER ------------ Subdweller Power Source > --- PROPULSION ------- Light Treads Light Treads > --- UTILITY ---------- Light Humpback > --- WEAPON ----------- Subdweller Machine Gun Subdweller Machine Gun > --- INVENTORY -------- Makeshift Leg Wheel Wheel Subdweller Monowheel Flightbrick Improved Heat Sink Subdweller Optics EM Pulse Gun Heavy Riot Gun Subdweller Beam Cannon Subdweller Beam Cannon Subdweller Beam Cannon Light Assault Rifle Battle Rifle Subdweller Machine Gun 1B-0RG's Assimilator Shrapnel Trap Shrapnel Trap [Rating: 23] Favorites ----------- Power Ion Engine Engine Ion Engine Propulsion Light Treads Treads Light Treads Leg Aluminum Leg Wheel Wheel Utility Light Humpback Storage Light Humpback Processor Visual Processing Unit Weapon Assault Rifle Energy Gun EM Pulse Gun Energy Cannon Subdweller Beam Cannon Ballistic Gun Assault Rifle Launcher Grenade Launcher Build | -11 -10 -10 -8 ------- Run | Yrd Mat Sub Rec Slots Evolved . | . . . . Power . | . . . . Propulsion . | . . . . Utility . | . . . . Weapon . | . . . . Parts Attached 21 | 7 1 11 2 Power 3 | 1 . 2 . Engine 3 | 1 . 2 . Core . | . . . . Reactor . | . . . . Propulsion 6 | 3 . 3 . Treads 2 | 1 . 1 . Leg 2 | 2 . . . Wheel 2 | . . 2 . Hover . | . . . . Flight . | . . . . Utility 3 | 1 1 1 . Device . | . . . . Storage 2 | 1 . 1 . Processor 1 | . 1 . . Hackware . | . . . . Protection . | . . . . Artifact . | . . . . Weapon 9 | 2 . 5 2 Energy Gun 1 | 1 . . . Energy Cannon 1 | . . 1 . Ballistic Gun 6 | 1 . 3 2 Ballistic Cannon . | . . . . Launcher 1 | . . 1 . Special Weapon . | . . . . Impact Weapon . | . . . . Slashing Weapon . | . . . . Piercing Weapon . | . . . . Special Melee Weapon . | . . . . Unidentified Prototypes . | . . . . Corrupted Parts 1 | . . 1 . System Corruption 3 | . . 3 . Parts Lost 11 | . . 6 5 Power 2 | . . 2 . Propulsion 4 | . . 2 2 Utility 1 | . . . 1 Weapon 4 | . . 2 2 Highest Loss Streak 5 | . . 3 5 To Critical Strikes . | . . . . Average Backups 9 | 4 7 10 8 Power . | . 1 . . Propulsion 3 | 3 4 3 2 Utility 1 | . . 2 1 Weapon 3 | . 1 4 4 Tool/Special . | . . . . Unused Backups 11 | . . 2 9 Power . | . . . . Propulsion 3 | . . . 3 Utility 3 | . . 1 2 Weapon 4 | . . 1 3 Tool/Special 1 | . . . 1 Average Slot Usage (%) 89 | . 89 90 49 Engine 13 | . 14 13 14 Treads 13 | . . 15 14 Leg 11 | . 28 8 . Wheel 3 | . . 3 . Storage 13 | . 14 14 7 Processor 5 | . 4 5 . Energy Gun 3 | . 14 1 . Energy Cannon 4 | . . 4 . Ballistic Gun 16 | . 14 17 14 Launcher 3 | . . 3 . Peak Build Rating 23 | 6 9 23 23 Average Rating 12 | 3 6 14 13 On Entrance 9 | . 6 9 23 Avg Prop Armor Cover (%) 17 | 17 . . . Naked Turns . | . . . . Heaviest Build 55 | 14 14 55 53 Greatest Support 40 | 20 20 40 40 Greatest Overweight (x) 2 | . . 2 2 Average Overweight (x) . | . . . 1 Largest Inventory Capacity 25 | 8 8 25 25 Average Capacity 16 | 6 8 18 7 Most Carried 25 | 8 8 25 25 Average Carried 12 | 5 7 13 7 Final Capacity 25 | 8 8 25 5 Final Carried 25 | 6 8 25 5 Class Distribution -------------------- 100% | Mutant Dominant Class ---------------- Mutant | -10/Materials Mutant | -10/Subcaves Mutant | -8/Recycling Resources | -11 -10 -10 -8 ----------- Run | Yrd Mat Sub Rec Matter Collected 661 | 226 75 360 . Remotely . | . . . . Salvage Created 425 | . 108 317 . Parts 39 | . 4 35 . Haulers Intercepted . | . . . . Recyclers Shooed . | . . . . Parts Field Recycled . | . . . . Retrieved Matter . | . . . . Parts Self-Destructed 13 | . . 13 . Prevented . | . . . . Parts Restored . | . . . . Kills | -11 -10 -10 -8 ------- Run | Yrd Mat Sub Rec Combat Hostiles Destroyed 18 | . 2 16 . Guns 5 | . 1 4 . Cannons 1 | . . 1 . AOE 12 | . 1 11 . Classes Destroyed 7 | . 2 5 . Turret 2 | . . 2 . Watcher 1 | . 1 . . Swarmer 7 | . . 7 . Grunt 2 | . 2 . . Sentry 1 | . . 1 . Subdweller 8 | . . 8 . Scientist 1 | . . 1 . Best Kill Streak 6 | . 2 6 . Combat Bots Only 4 | . 2 4 . Max Kills in Single Turn 3 | . 1 3 . Gunslinging . | . . . . Exploded 3 | . 1 3 . Melee . | . . . . Uniques/NPCs Destroyed . | . . . . Combat | -11 -10 -10 -8 -------- Run | Yrd Mat Sub Rec Hostile Shots Fired 131 | . 8 106 17 Missed 38 | . 1 36 1 Hits 93 | . 7 70 16 Projectile 93 | . 7 70 16 Critical Strikes 2 | . 2 . . Damage Taken 1405 | . 160 1012 233 Core 251 | . . 179 72 Absorbed by Shields . | . . . . Core Remaining (%) 100 | 100 . . . Volleys Fired 72 | . 7 63 2 Largest 2 | . 2 2 2 Hottest 80 | . 60 80 60 Shots Fired 102 | . 14 84 4 Gun 78 | . 14 60 4 Cannon 10 | . . 10 . Launcher 14 | . . 14 . Special . | . . . . Kinetic 60 | . 7 49 4 Thermal 10 | . . 10 . Explosive 14 | . . 14 . Electromagnetic 18 | . 7 11 . Robot Hit Streak 13 | . 5 13 2 Robot Miss Streak 2 | . 2 2 1 Penetration Max . | . . . . Secondary Targets . | . . . . Shots Hit Robots 64 | . 11 51 2 Core Hits 37 | . 5 32 . Critical Kills 1 | . . 1 . Critical Parts Destroyed 1 | . . 1 . Critical Strikes 4 | . 1 3 . Destroy 3 | . . 3 . Corrupt 1 | . 1 . . Melee Attacks . | . . . . Impact . | . . . . Slashing . | . . . . Piercing . | . . . . Sneak Attacks . | . . . . Combat Hostiles . | . . . . Follow-up Attacks . | . . . . Damage Inflicted 2063 | . 284 1743 36 Guns 772 | . 140 596 36 Cannons 246 | . . 246 . Explosions 1045 | . 144 901 . Melee . | . . . . Ramming . | . . . . Kinetic 652 | . 54 562 36 Thermal 390 | . 144 246 . Explosive 901 | . . 901 . Electromagnetic 120 | . 86 34 . Impact . | . . . . Slashing . | . . . . Piercing . | . . . . Highest Corruption 3 | . . 3 3 Average Corruption 3 | . . 3 3 Corruption Purged . | . . . . Corruption Blocked . | . . . . Effects 13 | . . 13 . Message Errors 5 | . . 5 . Matter Fused 2 | . . 2 . Heat Flow Errors 2 | . . 2 . Energy Discharges 1 | . . 1 . Data Loss (major) 1 | . . 1 . Alerts 2 | . . 2 . Overload Shots . | . . . . Overflow Damage 37 | . . 37 . Projectiles 24 | . . 24 . Explosions 13 | . . 13 . Melee . | . . . . Knockbacks . | . . . . Impact . | . . . . Kinetic . | . . . . Secondary . | . . . . Self-Inflicted Damage 89 | . 19 70 . Shots 4 | . 1 3 . Rammed . | . . . . Targets Rammed . | . . . . Kicked . | . . . . Crushed . | . . . . Highest Temperature 185 | . 111 185 36 Average Temperature 66 | . 68 72 21 Received Heat Transfer 519 | . 99 348 72 Siege Activations . | . . . . Martial Activations . | . . . . Shielding Activations . | . . . . Robots Disrupted . | . . . . Combat Hostiles . | . . . . Robots Corrupted . | . . . . Combat Hostiles . | . . . . Parts Fried . | . . . . Impact Corruptions . | . . . . Robots Melted . | . . . . Combat Hostiles . | . . . . Parts Melted . | . . . . Heat Transferred 483 | . 150 333 . Parts Sabotaged . | . . . . Parts Stolen . | . . . . Parts Stripped . | . . . . Power Chain Reactions 2 | . 2 . . Alert | -11 -10 -10 -8 ------- Run | Yrd Mat Sub Rec Maximum Alert Level . | . . . . Low Security (%) 100 | 100 100 . 100 Level 1 . | . . . . Level 2 . | . . . . Level 3 . | . . . . Level 4 . | . . . . Level 5 . | . . . . High Security . | . . . . Max Security . | . . . . Peak Influence 48 | . 48 . . Initial . | . . . . Average 7 | . 9 . . Influence Increases 338 | . 68 270 . Destroy 0b10 Robot/C 240 | . 40 200 . Destroy 0b10 Robot/NC 5 | . 5 . . Destroy Leader 22 | . 12 10 . Destroy Structure 11 | . 11 . . Lose Combat Pursuer 60 | . . 60 . Influence Decreases 338 | . 60 278 . Entered New Map 4 | . . 4 . Time Decay 294 | . 60 234 . Lost Part 40 | . . 40 . Squads Dispatched . | . . . . Investigation . | . . . . Extermination . | . . . . Reinforcement . | . . . . Assault . | . . . . Garrison . | . . . . Intercept . | . . . . Searches Triggered . | . . . . Construction Impeded . | . . . . Haulers Reinforced . | . . . . Active Scanning Responses . | . . . . Cargo Convoy Interrupts . | . . . . Stealth | -11 -10 -10 -8 --------- Run | Yrd Mat Sub Rec Distress Signals . | . . . . Communications Jammed . | . . . . Distress Signals . | . . . . Times Spotted 22 | . 3 17 2 Peak Tracking Total 3 | . 2 3 2 Tactical Retreats 2 | . . 2 . Traps | -11 -10 -10 -8 ------- Run | Yrd Mat Sub Rec Traps Triggered 1 | . 1 . . Indirectly . | . . . . Trap Hack Attempts . | . . . . Triggered . | . . . . Disarmed . | . . . . Reprogrammed . | . . . . Reused . | . . . . Traps Extracted . | . . . . Installed . | . . . . Triggered . | . . . . Most Traps Carried 2 | . . 2 2 Machines | -11 -10 -10 -8 ---------- Run | Yrd Mat Sub Rec Machines Disabled 4 | . . 4 . Max in Single Turn 2 | . . 2 . Machines Repaired . | . . . . Machines Dismantled . | . . . . Machines Sabotaged . | . . . . Overloaded Fab Kills . | . . . . Hacking | -11 -10 -10 -8 --------- Run | Yrd Mat Sub Rec Machines Accessed 2 | . . 2 . Terminals . | . . . . Fabricators . | . . . . Repair Stations . | . . . . Recycling Units . | . . . . Scanalyzers . | . . . . Garrison Access . | . . . . Total Hacks 4 | . . 4 . Successful 4 | . . 4 . Failed . | . . . . Catastrophic . | . . . . Database Lockouts . | . . . . Manual . | . . . . Terminals . | . . . . Fabricators . | . . . . Repair Stations . | . . . . Recycling Units . | . . . . Scanalyzers . | . . . . Garrison Access . | . . . . Terminal Hacks 4 | . . 4 . Record 3 | . . 3 . Proto ID Catalog 1 | . . 1 . Fabricator Hacks . | . . . . Repair Station Hacks . | . . . . Recycling Unit Hacks . | . . . . Scanalyzer . | . . . . Garrison Access Hacks . | . . . . Unauthorized Hacks . | . . . . Terminals . | . . . . Fabricators . | . . . . Repair Stations . | . . . . Recycling Units . | . . . . Scanalyzers . | . . . . Garrison Access . | . . . . Data Cores Recovered . | . . . . Used . | . . . . Hacking Detections . | . . . . Full Trace Events . | . . . . Feedback Events . | . . . . Feedback Blocked . | . . . . Robot Schematics Acquired . | . . . . Robots Built . | . . . . Authchips . | . . . . Time . | . . . . Total Robot Build Rating . | . . . . Part Schematics Acquired . | . . . . Parts Built . | . . . . Authchips . | . . . . Time . | . . . . Total Part Build Rating . | . . . . Part Studies Acquired . | . . . . Parts Repaired . | . . . . Time . | . . . . Parts Recycled . | . . . . Recycled Matter . | . . . . Retrieved Matter . | . . . . Retrieved Components . | . . . . Parts Scanalyzed . | . . . . Part Schematics Acquired . | . . . . Parts Damaged . | . . . . Bothacking | -11 -10 -10 -8 ------------ Run | Yrd Mat Sub Rec Used RIF Installer . | . . . . Robots Hacked . | . . . . Non-combat . | . . . . Combat . | . . . . Robot Hacks Applied . | . . . . Relay Couplers Released . | . . . . Fabnet Peak Effective % . | . . . . Robots Rewired . | . . . . Allies Hacked . | . . . . Hacks Repelled . | . . . . Allies | -11 -10 -10 -8 -------- Run | Yrd Mat Sub Rec Total Allies . | . . . . Largest Group . | . . . . Highest-Rated Group . | . . . . Highest-Rated Ally . | . . . . Total Orders . | . . . . Ally Attacks . | . . . . Total Damage . | . . . . Kills . | . . . . Allies Corrupted . | . . . . Allies Melted . | . . . . Intel | -11 -10 -10 -8 ------- Run | Yrd Mat Sub Rec Active Infowar (turns) 722 | . 83 639 . Optics 722 | . 83 639 . Robot Analysis Total . | . . . . Derelict Logs Recovered 2 | . . 2 . Drone Launches . | . . . . Drone Recoveries . | . . . . Exploration | -11 -10 -10 -8 ------------- Run | Yrd Mat Sub Rec Turns Passed 2063 | 60 289 1700 14 Spaces Moved 1126 | 41 212 870 3 Core 12 | 10 . . 2 Treads 344 | . . 343 1 Legs 542 | 31 212 299 . Wheels 228 | . . 228 . Hover . | . . . . Flight . | . . . . Fastest Speed 50 | 50 120 80 100 Average Speed 160 | 102 120 172 163 Slowest Speed 240 | 120 120 240 240 Overloaded Moves . | . . . . Propulsion Burnouts . | . . . . Robots Hopped . | . . . . Potential Cave-ins . | . . . . Cave-ins Triggered . | . . . . Exploration Rate (%) 18 | 4 35 32 3 Regions Visited 3 Branch Regions 2 Pre-discovered Areas 1 | . . 1 . Known Exits Taken . | . . . . Unknown Exits Taken 3 | 1 1 1 . Scrap Searched 6 | . . 6 . Spaces Dug 3 | . . 3 . Terrain Destroyed 77 | . 13 64 . Melee . | . . . . Projectile . | . . . . AOE 77 | . 13 64 . Terrain Rammed . | . . . . Walls Destroyed . | . . . . Machines Disabled . | . . . . Actions | -11 -10 -10 -8 --------- Run | Yrd Mat Sub Rec Total 1279 | 58 232 982 7 Wait 21 | . 10 11 . Move 1123 | 40 211 869 3 Hop . | . . . . Pick Up 32 | 11 3 18 . Fast Attach 5 | 1 . 2 2 Attach 11 | 5 1 5 . Detach . | . . . . Swap 10 | 1 . 9 . Drop 5 | . . 5 . Fire 72 | . 7 63 2 Melee . | . . . . Ram . | . . . . Kick . | . . . . Crush . | . . . . Escape Stasis . | . . . . Rewire . | . . . . Trap . | . . . . Miscellaneous . | . . . . Route ------- -11/Scrapyard -10/Materials (discovered 3 exits: [*Mat] / [*Min] / *Sub) -10/Subcaves (discovered 2 exits: [*Mat] / [*Rec]) -8/Recycling History --------- Turn | Location | Event 9 | -11/Scrapyard | Discovered new exit (range 15) 61 | -11/Scrapyard | Entered Materials 143 | -10/Materials | Discovered new exit (range 5) 266 | -10/Materials | Discovered new exit (range 5) 307 | -10/Materials | Build established: Mutant 341 | -10/Materials | Discovered new exit (range 8) 350 | -10/Materials | Entered Subcaves 351 | -10/Subcaves | Approached by a straggling Scientist 353 | -10/Subcaves | Learned location of Zion (-7) 477 | -10/Subcaves | Discovered new exit (range 4) 478 | -10/Subcaves | Shifting Twisted Machinery released Sub. Beam Cannon 478 | -10/Subcaves | Shifting Twisted Machinery released Lgt. Humpback 540 | -10/Subcaves | Visited 4L-MR0's lab 592 | -10/Subcaves | Ambushed by Subdweller buried in earth 687 | -10/Subcaves | Visited Clippyterm 692 | -10/Subcaves | Learned Research machine intel 846 | -10/Subcaves | Learned Materials garrison access intel 858 | -10/Subcaves | Discovered new exit (range 12) 893 | -10/Subcaves | Lost 3 parts (2n1w) 896 | -10/Subcaves | Ambushed by Subdwellers from Twisted Machinery 1033 | -10/Subcaves | Found Prototype Special Melee Weapon 1527 | -10/Subcaves | Disturbed a concealed Subdweller 1536 | -10/Subcaves | Disturbed a concealed Subdweller 1541 | -10/Subcaves | Core integrity fell below 50% 1834 | -10/Subcaves | Found Flightbrick 2050 | -10/Subcaves | Entered Recycling 2056 | -8/Recycling | Core integrity fell below 20% 2064 | -8/Recycling | Destroyed by Y-45 Defender with Beam Rifle Last Messages --------------- 01833_ Dropped Disposable Heat Sink. 01834_ Acquired Flightbrick. 01836_ DMOC V CVFMNNYBW0KY>XI 01854_ System corrupted: Matter fused (-5). 01871_ System corrupted: Matter fused (-8). 01889_ IZE0D>C3D5DX2VD5| WYFCP 01916_ U8,OQOB&WYZTZMHXQWUE 01921_ Acquired 19 matter. 01992_ System corrupted: Heat flow error (+225). 02046_ Acquired 11 matter. LOCATION=UNKNOWN GOAL=ESCAPE 02052_ Y-45 Defender springs to life. 02052_ Lgt. Humpback destroyed. 02052_ Y-45 Defender springs to life. 02055_ Lgt. Treads destroyed. 02058_ Sub. Machine Gun destroyed. 02058_ Lgt. Treads destroyed. 02060_ Acquired Sub. Machine Gun. 02063_ Acquired Battle Rifle. Map ----- +----------------------------------------------------+ | ?????????????????????????????????????????????????? | | ?????????????????????????????????????????????????? | | ?????????????????????????????????????????????????? | | ?????????????????????????????????????????????????? | | ?????????????????????????????????????????????????? | | ?????????????????????????????????????????????????? | | ?????????????????????????????????????????????????? | | ?????????????????????????????????????????????????? | | ?????????????????????????????????????????????????? | | ?????????????????????????????????????????????????? | | ????????????????????????r ??????????????????????? | | ???????????????????????? ??????????????????????? | | ???????????????????????? ??????????????????????? | | ???????????????????????# #?????????????????????? | | ???????????????????????# #?????????????????????? | | ???????????????????????# #?????????????????????? | | ???????????????????????# #?????????????????????? | | ???????????????????????# r #?????????????????????? | | ???????????????????????# #?????????????????????? | | ???????????????????????# #?????????????????????? | | ???????????????????????# #?????????????????????? | | ???????????????????????# #?????????????????????? | | ???????????????????????# #?????????????????????? | | ??????????????????????##&]=#?????????????????????? | | ??????????????????????#Y&=]##????????????????????? | | ???????????????????????#!@=Y#????????????????????? | | ???????????????????????#[ =##????????????????????? | | ???????????????????????#=[[#?????????????????????? | | ???????????????????????#####?????????????????????? | | ?????????????????????????????????????????????????? | | ?????????????????????????????????????????????????? | | ?????????????????????????????????????????????????? | | ?????????????????????????????????????????????????? | | ?????????????????????????????????????????????????? | | ?????????????????????????????????????????????????? | | | | | | | | | | | | | | | | | | | | | | | | | | | | | | | +----------------------------------------------------+ Best States ------------- Heat Dissipation 25 Energy Generation 15 Energy Capacity 250 Matter Stores 300 Matter Capacity 300 Sight Range 18 Terrain Scan Density 10 Evasion (%) 55 Recoil Reduction 2 Item Schematics ----------------- None Robot Schematics ------------------ None Fabricated ------------ Nothing Repaired ---------- Nothing Studied --------- None Alien Tech Used ----------------- None Achievements -------------- None Challenges ------------ None Game ------ Seed PropulsionResetScrap Manual? 0 Play Time 00:10:10 Cumulative 459.6 hours Start 2026.02.15 @ 07:45:35 End 2026.02.15 @ 07:55:28 Sessions 1 Manual Loads 0 Difficulty Rogue Special Mode None Game No. 224 Rogue 224 Adventurer 0 Explorer 0 Win Type - Total 13 Types 9/0/2/0/0/0/0/1/0/1 Lore% 85 Gallery% 79 Achievement% 62 Wizard Run 0 Options --------- Layout 1 ASCII 0 Keyboard 0 Movement Mouse Keybinds 0 Fullscreen 1 Font 24/Smallcaps Map View 50x35 Zoom Use 0% Tactical HUD 1 Map Filters NONE Filters NONE Steam 1 RUN: 09ab1936-90c6-45e1-a3cb-fc2f5721e78b